[Event "November 21 Late 2023"]
[Site "https://www.chess.com"]
[Date "2023.11.21"]
[Round "9"]
[White "Hambleton, Aman"]
[Black "Przybylski, Wojciech"]
[Result "1-0"]
[Board "43"]
[TimeControl "180+1"]
[WhiteFideId "2606577"]
[BlackFideId "1117599"]
[WhiteElo "2511"]
[BlackElo "2203"]
[WhiteTeam "CAN"]
[BlackTeam "POL"]
[WhiteClock "0:00:04"]
[BlackClock "0:00:07"]

1. d4 {[%clk 0:03:00]}  d5 {[%clk 0:02:57]} 2. Bf4 {[%clk 0:03:01]}  Nf6 {[%clk 0:02:54]} 3. e3 {[%clk 0:03:01]}  e6 {[%clk 0:02:54]} 4. Nd2 {[%clk 0:03:02]}  Bd6 {[%clk 0:02:54]} 5. Ngf3 {[%clk 0:03:03]}  Bxf4 {[%clk 0:02:53]} 6. exf4 {[%clk 0:03:03]}  O-O {[%clk 0:02:53]} 7. Bd3 {[%clk 0:03:04]}  Nbd7 {[%clk 0:02:50]} 8. O-O {[%clk 0:03:03]}  c5 {[%clk 0:02:50]} 9. c3 {[%clk 0:03:03]}  b6 {[%clk 0:02:48]} 10. Re1 {[%clk 0:03:02]}  a5 {[%clk 0:02:47]} 11. g3 {[%clk 0:03:03]}  Ba6 {[%clk 0:02:47]} 12. Bc2 {[%clk 0:03:03]}  Rc8 {[%clk 0:02:44]} 13. Kg2 {[%clk 0:03:02]}  Re8 {[%clk 0:02:43]} 14. Rc1 {[%clk 0:03:00]}  Rc7 {[%clk 0:02:38]} 15. a3 {[%clk 0:03:00]}  Qa8 {[%clk 0:02:32]} 16. Bb1 {[%clk 0:03:00]}  Rec8 {[%clk 0:02:31]} 17. h4 {[%clk 0:03:00]}  cxd4 {[%clk 0:02:30]} 18. Nxd4 {[%clk 0:03:00]}  Nc5 {[%clk 0:02:26]} 19. N2f3 {[%clk 0:03:01]}  Nce4 {[%clk 0:02:22]} 20. Ne5 {[%clk 0:03:01]}  g6 {[%clk 0:02:15]} 21. f3 {[%clk 0:02:55]}  Nd6 {[%clk 0:02:14]} 22. Qd2 {[%clk 0:02:45]}  Nc4 {[%clk 0:01:58]} 23. Qf2 {[%clk 0:02:43]}  Nh5 {[%clk 0:01:53]} 24. g4 {[%clk 0:02:29]}  Nf6 {[%clk 0:01:45]} 25. h5 {[%clk 0:02:28]}  b5 {[%clk 0:01:19]} 26. Rh1 {[%clk 0:02:16]}  Kf8 {[%clk 0:01:11]} 27. hxg6 {[%clk 0:02:06]}  hxg6 {[%clk 0:01:05]} 28. Qh4 {[%clk 0:02:06]}  Ng8 {[%clk 0:00:59]} 29. Nxg6+ {[%clk 0:00:58]}  fxg6 {[%clk 0:00:58]} 30. Nxe6+ {[%clk 0:00:59]}  Ke8 {[%clk 0:00:59]} 31. Bxg6+ {[%clk 0:00:23]}  Kd7 {[%clk 0:00:58]} 32. Nd4 {[%clk 0:00:23]}  Kd6 {[%clk 0:00:42]} 33. Rce1 {[%clk 0:00:09]}  Rg7 {[%clk 0:00:34]} 34. Nf5+ {[%clk 0:00:06]}  Kc7 {[%clk 0:00:24]} 35. Nxg7 {[%clk 0:00:07]}  Qc6 {[%clk 0:00:24]} 36. Ne6+ {[%clk 0:00:07]}  Kb8 {[%clk 0:00:25]} 37. Nd4 {[%clk 0:00:08]}  Qxg6 {[%clk 0:00:24]} 38. Qg5 {[%clk 0:00:04]}  Qf7 {[%clk 0:00:21]} 39. Qf5 {[%clk 0:00:03]}  Qc7 {[%clk 0:00:16]} 40. Rh7 {[%clk 0:00:03]}  Qd6 {[%clk 0:00:12]} 41. Re6 {[%clk 0:00:03]}  Qc5 {[%clk 0:00:12]} 42. b4 {[%clk 0:00:02]}  Qf8 {[%clk 0:00:09]} 43. Qxf8 {[%clk 0:00:02]}  Rxf8 {[%clk 0:00:09]} 44. Rxa6 {[%clk 0:00:02]}  Nf6 {[%clk 0:00:08]} 45. Nc6+ {[%clk 0:00:03]}  Kc8 {[%clk 0:00:07]} 46. Ra8# {[%clk 0:00:04]} 1-0

[Event "November 21 Late 2023"]
[Site "https://www.chess.com"]
[Date "2023.11.21"]
[Round "9"]
[White "Vlassov, Nikolai"]
[Black "Pourkashiyan, Atousa"]
[Result "1-0"]
[Board "44"]
[TimeControl "180+1"]
[WhiteFideId "4103360"]
[BlackFideId "12502014"]
[WhiteElo "2324"]
[BlackElo "2221"]
[WhiteTeam "FID"]
[BlackTeam "USA"]
[WhiteClock "0:01:05"]
[BlackClock "0:00:16"]

1. e4 {[%clk 0:03:00]}  c5 {[%clk 0:02:58]} 2. c3 {[%clk 0:02:57]}  Nf6 {[%clk 0:02:58]} 3. e5 {[%clk 0:02:55]}  Nd5 {[%clk 0:02:58]} 4. d4 {[%clk 0:02:55]}  e6 {[%clk 0:02:59]} 5. c4 {[%clk 0:02:54]}  Nb6 {[%clk 0:02:57]} 6. dxc5 {[%clk 0:02:54]}  Bxc5 {[%clk 0:02:57]} 7. Qg4 {[%clk 0:02:54]}  Bb4+ {[%clk 0:02:50]} 8. Bd2 {[%clk 0:02:50]}  Bxd2+ {[%clk 0:02:49]} 9. Nxd2 {[%clk 0:02:50]}  O-O {[%clk 0:02:47]} 10. Ngf3 {[%clk 0:02:49]}  d5 {[%clk 0:02:41]} 11. Bd3 {[%clk 0:02:46]}  h6 {[%clk 0:02:10]} 12. O-O-O {[%clk 0:02:41]}  Nc6 {[%clk 0:02:04]} 13. h4 {[%clk 0:02:39]}  Qc7 {[%clk 0:01:54]} 14. Rde1 {[%clk 0:02:30]}  dxc4 {[%clk 0:01:49]} 15. Bb1 {[%clk 0:02:23]}  Nb4 {[%clk 0:01:39]} 16. Rh3 {[%clk 0:02:07]}  Nd3+ {[%clk 0:01:37]} 17. Bxd3 {[%clk 0:02:03]}  cxd3+ {[%clk 0:01:38]} 18. Kb1 {[%clk 0:02:03]}  Qc2+ {[%clk 0:01:25]} 19. Ka1 {[%clk 0:02:03]}  Na4 {[%clk 0:01:23]} 20. Rb1 {[%clk 0:01:58]}  f5 {[%clk 0:01:04]} 21. exf6 {[%clk 0:01:57]}  Rxf6 {[%clk 0:01:05]} 22. Rg3 {[%clk 0:01:56]}  Rf7 {[%clk 0:00:59]} 23. Ne5 {[%clk 0:01:53]}  Rc7 {[%clk 0:00:56]} 24. Rxd3 {[%clk 0:01:48]}  Bd7 {[%clk 0:00:39]} 25. Rxd7 {[%clk 0:01:40]}  Rxd7 {[%clk 0:00:38]} 26. Qxe6+ {[%clk 0:01:35]}  Kh7 {[%clk 0:00:29]} 27. Qxd7 {[%clk 0:01:32]}  Nb6 {[%clk 0:00:20]} 28. Qd4 {[%clk 0:01:26]}  Rc8 {[%clk 0:00:19]} 29. Qe4+ {[%clk 0:01:18]}  Qxe4 {[%clk 0:00:19]} 30. Nxe4 {[%clk 0:01:18]}  Nd5 {[%clk 0:00:19]} 31. Rd1 {[%clk 0:01:14]}  Nb4 {[%clk 0:00:19]} 32. a3 {[%clk 0:01:09]}  Na6 {[%clk 0:00:19]} 33. Rd7 {[%clk 0:01:07]}  Rc1+ {[%clk 0:00:18]} 34. Ka2 {[%clk 0:01:07]}  Re1 {[%clk 0:00:16]} 35. Nf6+ {[%clk 0:01:05]} 1-0

[Event "November 21 Late 2023"]
[Site "https://www.chess.com"]
[Date "2023.11.21"]
[Round "9"]
[White "Ambartsumova, Karina"]
[Black "Ongut, Tamas Gunes"]
[Result "1-0"]
[Board "45"]
[TimeControl "180+1"]
[WhiteFideId "4166299"]
[BlackFideId "770280"]
[WhiteElo "2240"]
[BlackElo "2148"]
[WhiteTeam "RUS"]
[BlackTeam "HUN"]
[WhiteClock "0:01:09"]
[BlackClock "0:01:33"]

1. d4 {[%clk 0:03:00]}  d5 {[%clk 0:02:55]} 2. c4 {[%clk 0:03:00]}  e6 {[%clk 0:02:55]} 3. Nc3 {[%clk 0:03:00]}  h6 {[%clk 0:02:55]} 4. Nf3 {[%clk 0:02:52]}  a6 {[%clk 0:02:54]} 5. g3 {[%clk 0:02:45]}  dxc4 {[%clk 0:02:54]} 6. Bg2 {[%clk 0:02:45]}  Nc6 {[%clk 0:02:54]} 7. O-O {[%clk 0:02:44]}  Rb8 {[%clk 0:02:55]} 8. e4 {[%clk 0:02:36]}  b5 {[%clk 0:02:45]} 9. d5 {[%clk 0:02:32]}  Nce7 {[%clk 0:02:44]} 10. Ne5 {[%clk 0:02:25]}  Nf6 {[%clk 0:02:43]} 11. Be3 {[%clk 0:02:02]}  Bb7 {[%clk 0:02:39]} 12. dxe6 {[%clk 0:02:00]}  fxe6 {[%clk 0:02:38]} 13. Qc2 {[%clk 0:01:55]}  Nc6 {[%clk 0:02:19]} 14. Rad1 {[%clk 0:01:45]}  Nxe5 {[%clk 0:02:18]} 15. Rxd8+ {[%clk 0:01:43]}  Rxd8 {[%clk 0:02:18]} 16. Bf4 {[%clk 0:01:41]}  Nd3 {[%clk 0:02:16]} 17. Bxc7 {[%clk 0:01:39]}  Rd7 {[%clk 0:02:17]} 18. Bb6 {[%clk 0:01:32]}  Bb4 {[%clk 0:02:05]} 19. a4 {[%clk 0:01:28]}  O-O {[%clk 0:01:55]} 20. axb5 {[%clk 0:01:26]}  Bxc3 {[%clk 0:01:55]} 21. bxa6 {[%clk 0:01:21]}  Bxb2 {[%clk 0:01:45]} 22. axb7 {[%clk 0:01:18]}  Rxb7 {[%clk 0:01:46]} 23. Be3 {[%clk 0:01:14]}  Ng4 {[%clk 0:01:44]} 24. Qxc4 {[%clk 0:01:11]}  Nxe3 {[%clk 0:01:40]} 25. fxe3 {[%clk 0:01:09]}  Kh8 {[%clk 0:01:33]} 26. Rxf8+ {[%clk 0:01:09]} 1-0

[Event "November 21 Late 2023"]
[Site "https://www.chess.com"]
[Date "2023.11.21"]
[Round "9"]
[White "Reprintsev, Alexander"]
[Black "elmusmolamas"]
[Result "0-1"]
[Board "46"]
[TimeControl "180+1"]
[WhiteFideId "14100541"]
[WhiteElo "2229"]
[BlackElo "2584"]
[WhiteTeam "UKR"]
[WhiteClock "0:00:00"]
[BlackClock "0:00:05"]

1. e4 {[%clk 0:03:00]}  e6 {[%clk 0:03:00]} 2. d4 {[%clk 0:02:59]}  d5 {[%clk 0:03:01]} 3. Nc3 {[%clk 0:02:59]}  dxe4 {[%clk 0:02:52]} 4. Nxe4 {[%clk 0:02:58]}  Nf6 {[%clk 0:02:52]} 5. Nxf6+ {[%clk 0:02:53]}  gxf6 {[%clk 0:02:51]} 6. Ne2 {[%clk 0:02:39]}  b6 {[%clk 0:02:49]} 7. Nc3 {[%clk 0:02:35]}  Bb7 {[%clk 0:02:49]} 8. Be3 {[%clk 0:02:24]}  f5 {[%clk 0:02:43]} 9. Qh5 {[%clk 0:02:21]}  Nd7 {[%clk 0:02:40]} 10. O-O-O {[%clk 0:02:15]}  Nf6 {[%clk 0:02:40]} 11. Qh3 {[%clk 0:02:12]}  Nd5 {[%clk 0:02:36]} 12. Bb5+ {[%clk 0:02:08]}  c6 {[%clk 0:02:35]} 13. Nxd5 {[%clk 0:02:05]}  cxb5 {[%clk 0:02:24]} 14. Nf4 {[%clk 0:01:58]}  Bd5 {[%clk 0:01:43]} 15. Kb1 {[%clk 0:01:55]}  Qd6 {[%clk 0:01:33]} 16. Nxd5 {[%clk 0:01:50]}  Qxd5 {[%clk 0:01:34]} 17. g4 {[%clk 0:01:50]}  fxg4 {[%clk 0:01:27]} 18. Qxg4 {[%clk 0:01:50]}  h5 {[%clk 0:01:28]} 19. Qe2 {[%clk 0:01:36]}  O-O-O {[%clk 0:01:26]} 20. Rhg1 {[%clk 0:01:30]}  Be7 {[%clk 0:01:20]} 21. Rg7 {[%clk 0:01:24]}  Rdf8 {[%clk 0:01:20]} 22. Rdg1 {[%clk 0:01:21]}  Bf6 {[%clk 0:01:20]} 23. R7g5 {[%clk 0:01:12]}  Bxg5 {[%clk 0:01:20]} 24. Rxg5 {[%clk 0:01:10]}  f5 {[%clk 0:01:21]} 25. Bf4 {[%clk 0:00:59]}  Rhg8 {[%clk 0:01:13]} 26. h4 {[%clk 0:00:56]}  Rxg5 {[%clk 0:01:07]} 27. hxg5 {[%clk 0:00:52]}  h4 {[%clk 0:01:08]} 28. b3 {[%clk 0:00:51]}  Qe4 {[%clk 0:00:34]} 29. Qd2 {[%clk 0:00:37]}  Kb7 {[%clk 0:00:20]} 30. Be5 {[%clk 0:00:26]}  h3 {[%clk 0:00:17]} 31. g6 {[%clk 0:00:26]}  h2 {[%clk 0:00:16]} 32. Bxh2 {[%clk 0:00:23]}  Qh1+ {[%clk 0:00:14]} 33. Kb2 {[%clk 0:00:22]}  Qxh2 {[%clk 0:00:15]} 34. Qg5 {[%clk 0:00:17]}  Qc7 {[%clk 0:00:15]} 35. Qg2+ {[%clk 0:00:11]}  Ka6 {[%clk 0:00:15]} 36. a4 {[%clk 0:00:10]}  bxa4 {[%clk 0:00:13]} 37. bxa4 {[%clk 0:00:10]}  Rc8 {[%clk 0:00:13]} 38. Qf1+ {[%clk 0:00:09]}  Qc4 {[%clk 0:00:13]} 39. Qd1 {[%clk 0:00:08]}  Qc3+ {[%clk 0:00:11]} 40. Kb1 {[%clk 0:00:06]}  Qb4+ {[%clk 0:00:11]} 41. Kc1 {[%clk 0:00:07]}  Qa3+ {[%clk 0:00:11]} 42. Kb1 {[%clk 0:00:07]}  Qb4+ {[%clk 0:00:08]} 43. Kc1 {[%clk 0:00:07]}  Qc4 {[%clk 0:00:08]} 44. g7 {[%clk 0:00:06]}  Rg8 {[%clk 0:00:08]} 45. Qg1 {[%clk 0:00:05]}  Qxd4 {[%clk 0:00:06]} 46. Qf1+ {[%clk 0:00:05]}  Kb7 {[%clk 0:00:06]} 47. Qg2+ {[%clk 0:00:05]}  Qe4 {[%clk 0:00:07]} 48. Qg6 {[%clk 0:00:05]}  Ka6 {[%clk 0:00:05]} 49. Qf7 {[%clk 0:00:04]}  Qe1+ {[%clk 0:00:04]} 50. Kb2 {[%clk 0:00:04]}  Qe5+ {[%clk 0:00:04]} 51. Kc1 {[%clk 0:00:02]}  Rxg7 {[%clk 0:00:05]} 52. Qe8 {[%clk 0:00:01]}  Qe1+ {[%clk 0:00:05]} 53. Kb2 {[%clk 0:00:02]}  Qb4+ {[%clk 0:00:06]} 54. Kc1 {[%clk 0:00:02]}  Rc7 {[%clk 0:00:05]} 55. Qxe6 {[%clk 0:00:00]}  Qf4+ {[%clk 0:00:05]} 0-1

[Event "November 21 Late 2023"]
[Site "https://www.chess.com"]
[Date "2023.11.21"]
[Round "9"]
[White "Janaszak, Dawid"]
[Black "VitaliyChayka"]
[Result "1-0"]
[Board "49"]
[TimeControl "180+1"]
[WhiteFideId "1119206"]
[WhiteElo "2218"]
[BlackElo "2453"]
[WhiteTeam "POL"]
[WhiteClock "0:00:12"]
[BlackClock "0:00:00"]

1. e4 {[%clk 0:03:00]}  d6 {[%clk 0:02:58]} 2. Nc3 {[%clk 0:03:00]}  Nf6 {[%clk 0:02:57]} 3. f4 {[%clk 0:02:59]}  c5 {[%clk 0:02:50]} 4. Bc4 {[%clk 0:02:55]}  e6 {[%clk 0:02:46]} 5. Nf3 {[%clk 0:02:52]}  Be7 {[%clk 0:02:41]} 6. O-O {[%clk 0:02:51]}  O-O {[%clk 0:02:41]} 7. Bb3 {[%clk 0:02:45]}  Nc6 {[%clk 0:02:38]} 8. d3 {[%clk 0:02:43]}  Nd4 {[%clk 0:02:35]} 9. Nxd4 {[%clk 0:02:42]}  cxd4 {[%clk 0:02:34]} 10. Ne2 {[%clk 0:02:43]}  Qb6 {[%clk 0:02:33]} 11. Kh1 {[%clk 0:02:37]}  Bd7 {[%clk 0:02:29]} 12. Qe1 {[%clk 0:02:32]}  a5 {[%clk 0:02:21]} 13. a3 {[%clk 0:02:28]}  a4 {[%clk 0:02:20]} 14. Ba2 {[%clk 0:02:28]}  Rac8 {[%clk 0:02:17]} 15. Bb1 {[%clk 0:02:23]}  e5 {[%clk 0:02:04]} 16. fxe5 {[%clk 0:02:16]}  dxe5 {[%clk 0:02:04]} 17. Qg3 {[%clk 0:02:10]}  Qb5 {[%clk 0:01:52]} 18. c3 {[%clk 0:02:02]}  dxc3 {[%clk 0:01:46]} 19. Nxc3 {[%clk 0:02:01]}  Qa5 {[%clk 0:01:45]} 20. Bd2 {[%clk 0:01:55]}  Qb6 {[%clk 0:01:36]} 21. Qxe5 {[%clk 0:01:20]}  Rfe8 {[%clk 0:01:34]} 22. Qg3 {[%clk 0:01:15]}  Qxb2 {[%clk 0:01:31]} 23. Ra2 {[%clk 0:01:15]}  Qb3 {[%clk 0:01:29]} 24. Bc2 {[%clk 0:01:11]}  Qe6 {[%clk 0:01:28]} 25. Rb2 {[%clk 0:01:00]}  Bxa3 {[%clk 0:01:24]} 26. Rxb7 {[%clk 0:00:57]}  Bc6 {[%clk 0:01:22]} 27. Rb6 {[%clk 0:00:55]}  Bc5 {[%clk 0:01:20]} 28. Ra6 {[%clk 0:00:55]}  Ra8 {[%clk 0:01:18]} 29. Rxc6 {[%clk 0:00:35]}  Qxc6 {[%clk 0:01:15]} 30. e5 {[%clk 0:00:36]}  Nd5 {[%clk 0:01:08]} 31. Ne4 {[%clk 0:00:33]}  Bf8 {[%clk 0:01:06]} 32. Bb1 {[%clk 0:00:28]}  a3 {[%clk 0:01:03]} 33. Ba2 {[%clk 0:00:29]}  Red8 {[%clk 0:00:47]} 34. Ng5 {[%clk 0:00:26]}  Ra7 {[%clk 0:00:43]} 35. Qf3 {[%clk 0:00:22]}  h6 {[%clk 0:00:36]} 36. Nxf7 {[%clk 0:00:19]}  Rad7 {[%clk 0:00:19]} 37. Bc4 {[%clk 0:00:17]}  Kh7 {[%clk 0:00:14]} 38. h3 {[%clk 0:00:15]}  a2 {[%clk 0:00:11]} 39. Bxa2 {[%clk 0:00:14]}  Qc2 {[%clk 0:00:11]} 40. Qe4+ {[%clk 0:00:12]}  Kg8 {[%clk 0:00:08]} 41. Nxd8 {[%clk 0:00:12]}  Qxa2 {[%clk 0:00:00]} 42. Ne6 {[%clk 0:00:12]} 1-0

[Event "November 21 Late 2023"]
[Site "https://www.chess.com"]
[Date "2023.11.21"]
[Round "9"]
[White "TheAlienParty"]
[Black "ciutadella"]
[Result "1/2-1/2"]
[Board "52"]
[TimeControl "180+1"]
[WhiteElo "2407"]
[BlackElo "2542"]
[WhiteClock "0:01:08"]
[BlackClock "0:00:07"]

1. c4 {[%clk 0:02:57]}  e6 {[%clk 0:02:58]} 2. d4 {[%clk 0:02:52]}  d5 {[%clk 0:02:58]} 3. cxd5 {[%clk 0:02:52]}  exd5 {[%clk 0:02:58]} 4. Nc3 {[%clk 0:02:52]}  c6 {[%clk 0:02:58]} 5. Bf4 {[%clk 0:02:51]}  Bd6 {[%clk 0:02:57]} 6. Bxd6 {[%clk 0:02:51]}  Qxd6 {[%clk 0:02:58]} 7. Nf3 {[%clk 0:02:50]}  Bf5 {[%clk 0:02:57]} 8. e3 {[%clk 0:02:50]}  Nd7 {[%clk 0:02:56]} 9. Be2 {[%clk 0:02:50]}  Ngf6 {[%clk 0:02:55]} 10. O-O {[%clk 0:02:50]}  O-O {[%clk 0:02:56]} 11. Rc1 {[%clk 0:02:50]}  Rfe8 {[%clk 0:02:55]} 12. h3 {[%clk 0:02:49]}  h6 {[%clk 0:02:51]} 13. a3 {[%clk 0:02:48]}  a5 {[%clk 0:02:49]} 14. Na4 {[%clk 0:02:41]}  Ne4 {[%clk 0:02:48]} 15. Bd3 {[%clk 0:02:40]}  b5 {[%clk 0:02:37]} 16. Nc3 {[%clk 0:02:38]}  Nxc3 {[%clk 0:02:32]} 17. Rxc3 {[%clk 0:02:35]}  Bxd3 {[%clk 0:02:30]} 18. Qxd3 {[%clk 0:02:34]}  a4 {[%clk 0:02:26]} 19. Rfc1 {[%clk 0:02:33]}  Rec8 {[%clk 0:02:25]} 20. Qc2 {[%clk 0:02:29]}  Ra6 {[%clk 0:02:25]} 21. g3 {[%clk 0:02:14]}  Qe6 {[%clk 0:01:55]} 22. Kg2 {[%clk 0:02:12]}  Nf6 {[%clk 0:01:47]} 23. Ne5 {[%clk 0:02:10]}  Ne4 {[%clk 0:01:27]} 24. Rxc6 {[%clk 0:02:06]}  Raxc6 {[%clk 0:01:27]} 25. Nxc6 {[%clk 0:02:06]}  Kh8 {[%clk 0:01:16]} 26. f3 {[%clk 0:01:52]}  Ng5 {[%clk 0:01:09]} 27. g4 {[%clk 0:01:48]}  Qxe3 {[%clk 0:01:06]} 28. Qf5 {[%clk 0:01:40]}  Qd2+ {[%clk 0:00:42]} 29. Kg3 {[%clk 0:01:37]}  Re8 {[%clk 0:00:34]} 30. Rc2 {[%clk 0:01:17]}  Qe1+ {[%clk 0:00:30]} 31. Kg2 {[%clk 0:01:14]}  Re3 {[%clk 0:00:19]} 32. Ne5 {[%clk 0:01:10]}  Re2+ {[%clk 0:00:14]} 33. Rxe2 {[%clk 0:01:08]}  Qxe2+ {[%clk 0:00:15]} 34. Kg3 {[%clk 0:01:08]}  Qe1+ {[%clk 0:00:15]} 35. Kg2 {[%clk 0:01:08]}  Qd2+ {[%clk 0:00:13]} 36. Kg3 {[%clk 0:01:08]}  Qe1+ {[%clk 0:00:12]} 37. Kg2 {[%clk 0:01:08]}  Qd2+ {[%clk 0:00:10]} 38. Kg3 {[%clk 0:01:08]}  Qe1+ {[%clk 0:00:07]} 1/2-1/2

[Event "November 21 Late 2023"]
[Site "https://www.chess.com"]
[Date "2023.11.21"]
[Round "9"]
[White "Hajiyev, Kanan"]
[Black "Zampronha, Wladimir Camilo"]
[Result "1-0"]
[Board "53"]
[TimeControl "180+1"]
[WhiteFideId "13404148"]
[BlackFideId "2103087"]
[WhiteElo "2102"]
[BlackElo "2055"]
[WhiteTeam "AZE"]
[BlackTeam "BRA"]
[WhiteClock "0:00:58"]
[BlackClock "0:00:28"]

1. d4 {[%clk 0:02:56]}  Nf6 {[%clk 0:02:59]} 2. Nf3 {[%clk 0:02:57]}  e6 {[%clk 0:02:59]} 3. c4 {[%clk 0:02:57]}  b6 {[%clk 0:02:58]} 4. Nc3 {[%clk 0:02:57]}  Bb4 {[%clk 0:02:56]} 5. Qb3 {[%clk 0:02:57]}  a5 {[%clk 0:02:54]} 6. g3 {[%clk 0:02:55]}  Bb7 {[%clk 0:02:52]} 7. Bg2 {[%clk 0:02:55]}  Ne4 {[%clk 0:02:52]} 8. O-O {[%clk 0:02:42]}  O-O {[%clk 0:02:50]} 9. Nxe4 {[%clk 0:02:35]}  Bxe4 {[%clk 0:02:48]} 10. a3 {[%clk 0:02:35]}  Be7 {[%clk 0:02:47]} 11. Qe3 {[%clk 0:02:26]}  Bb7 {[%clk 0:02:45]} 12. b3 {[%clk 0:02:26]}  d6 {[%clk 0:02:42]} 13. Bb2 {[%clk 0:02:26]}  Nd7 {[%clk 0:02:42]} 14. Qc3 {[%clk 0:02:25]}  Bf6 {[%clk 0:02:40]} 15. Qc2 {[%clk 0:02:24]}  Rb8 {[%clk 0:02:32]} 16. b4 {[%clk 0:02:16]}  axb4 {[%clk 0:02:31]} 17. axb4 {[%clk 0:02:17]}  e5 {[%clk 0:02:31]} 18. Rfd1 {[%clk 0:02:05]}  Bxf3 {[%clk 0:02:17]} 19. Bxf3 {[%clk 0:01:58]}  exd4 {[%clk 0:02:16]} 20. Bxd4 {[%clk 0:01:58]}  Bxd4 {[%clk 0:02:13]} 21. Rxd4 {[%clk 0:01:58]}  Ne5 {[%clk 0:02:10]} 22. Bg2 {[%clk 0:01:59]}  Qf6 {[%clk 0:02:08]} 23. e3 {[%clk 0:01:57]}  c5 {[%clk 0:02:00]} 24. Rdd1 {[%clk 0:01:51]}  Rfd8 {[%clk 0:01:52]} 25. b5 {[%clk 0:01:51]}  h6 {[%clk 0:01:40]} 26. Ra7 {[%clk 0:01:46]}  Rd7 {[%clk 0:01:35]} 27. Ra6 {[%clk 0:01:39]}  Qe6 {[%clk 0:01:01]} 28. Bd5 {[%clk 0:01:37]}  Qh3 {[%clk 0:01:01]} 29. Qe4 {[%clk 0:01:29]}  Re7 {[%clk 0:00:51]} 30. Qg2 {[%clk 0:01:19]}  Qf5 {[%clk 0:00:49]} 31. e4 {[%clk 0:01:19]}  Qf6 {[%clk 0:00:48]} 32. f4 {[%clk 0:01:16]}  Ng4 {[%clk 0:00:46]} 33. Qe2 {[%clk 0:01:15]}  Qc3 {[%clk 0:00:44]} 34. Qxg4 {[%clk 0:01:10]}  Qc2 {[%clk 0:00:37]} 35. Qf3 {[%clk 0:01:02]}  Kh8 {[%clk 0:00:28]} 36. Qd3 {[%clk 0:00:58]} 1-0

[Event "November 21 Late 2023"]
[Site "https://www.chess.com"]
[Date "2023.11.21"]
[Round "9"]
[White "MKlose11"]
[Black "Rodriguez Dominguez, Melissa"]
[Result "1-0"]
[Board "54"]
[TimeControl "180+1"]
[BlackFideId "3517560"]
[WhiteElo "2633"]
[BlackElo "2012"]
[BlackTeam "CUB"]
[WhiteClock "0:01:29"]
[BlackClock "0:00:28"]

1. e4 {[%clk 0:02:57]}  c5 {[%clk 0:02:59]} 2. Nc3 {[%clk 0:02:57]}  a6 {[%clk 0:02:56]} 3. g3 {[%clk 0:02:58]}  b5 {[%clk 0:02:56]} 4. d3 {[%clk 0:02:58]}  Bb7 {[%clk 0:02:56]} 5. Bg2 {[%clk 0:02:58]}  Nf6 {[%clk 0:02:52]} 6. Nh3 {[%clk 0:02:53]}  b4 {[%clk 0:02:39]} 7. Ne2 {[%clk 0:02:51]}  e5 {[%clk 0:02:37]} 8. O-O {[%clk 0:02:51]}  Be7 {[%clk 0:02:36]} 9. f4 {[%clk 0:02:51]}  Nc6 {[%clk 0:02:28]} 10. fxe5 {[%clk 0:02:51]}  Nxe5 {[%clk 0:02:27]} 11. Ng5 {[%clk 0:02:38]}  O-O {[%clk 0:02:23]} 12. Nf3 {[%clk 0:02:38]}  Nxf3+ {[%clk 0:02:12]} 13. Bxf3 {[%clk 0:02:38]}  d5 {[%clk 0:02:12]} 14. exd5 {[%clk 0:02:27]}  Bxd5 {[%clk 0:02:11]} 15. Nf4 {[%clk 0:02:27]}  Bxf3 {[%clk 0:02:07]} 16. Qxf3 {[%clk 0:02:28]}  Rc8 {[%clk 0:02:06]} 17. Be3 {[%clk 0:02:21]}  c4 {[%clk 0:02:04]} 18. d4 {[%clk 0:02:21]}  c3 {[%clk 0:01:54]} 19. b3 {[%clk 0:02:17]}  Bd6 {[%clk 0:01:36]} 20. Nd3 {[%clk 0:02:10]}  Nd7 {[%clk 0:01:07]} 21. Qb7 {[%clk 0:02:00]}  a5 {[%clk 0:01:05]} 22. Rae1 {[%clk 0:01:58]}  Qc7 {[%clk 0:01:00]} 23. Qf3 {[%clk 0:01:53]}  Nb6 {[%clk 0:00:55]} 24. Re2 {[%clk 0:01:51]}  a4 {[%clk 0:00:54]} 25. Rfe1 {[%clk 0:01:46]}  axb3 {[%clk 0:00:49]} 26. axb3 {[%clk 0:01:47]}  Ra8 {[%clk 0:00:49]} 27. Bf4 {[%clk 0:01:37]}  Bxf4 {[%clk 0:00:47]} 28. Qxf4 {[%clk 0:01:38]}  Qxf4 {[%clk 0:00:46]} 29. Nxf4 {[%clk 0:01:37]}  Ra2 {[%clk 0:00:46]} 30. Nd3 {[%clk 0:01:33]}  Nd5 {[%clk 0:00:43]} 31. Re5 {[%clk 0:01:33]}  Rxc2 {[%clk 0:00:33]} 32. Rxd5 {[%clk 0:01:32]}  Rd2 {[%clk 0:00:32]} 33. Nxb4 {[%clk 0:01:30]}  c2 {[%clk 0:00:32]} 34. Rc5 {[%clk 0:01:30]}  Rd1 {[%clk 0:00:32]} 35. Nxc2 {[%clk 0:01:30]}  Rxe1+ {[%clk 0:00:30]} 36. Nxe1 {[%clk 0:01:31]}  Re8 {[%clk 0:00:28]} 37. Kf2 {[%clk 0:01:29]} 1-0

[Event "November 21 Late 2023"]
[Site "https://www.chess.com"]
[Date "2023.11.21"]
[Round "9"]
[White "Kovalevsky, Stanislav"]
[Black "Koksal, Ege"]
[Result "1-0"]
[Board "57"]
[TimeControl "180+1"]
[WhiteFideId "13508598"]
[BlackFideId "6317626"]
[WhiteElo "2092"]
[BlackElo "2230"]
[WhiteTeam "FID"]
[BlackTeam "TUR"]
[WhiteClock "0:00:14"]
[BlackClock "0:00:03"]

1. e4 {[%clk 0:03:00]}  e5 {[%clk 0:03:00]} 2. Nf3 {[%clk 0:03:00]}  Nc6 {[%clk 0:03:01]} 3. Bb5 {[%clk 0:03:00]}  Nge7 {[%clk 0:03:01]} 4. O-O {[%clk 0:02:58]}  g6 {[%clk 0:03:00]} 5. c3 {[%clk 0:02:55]}  a6 {[%clk 0:02:59]} 6. Ba4 {[%clk 0:02:55]}  Bg7 {[%clk 0:03:00]} 7. d4 {[%clk 0:02:54]}  exd4 {[%clk 0:03:00]} 8. cxd4 {[%clk 0:02:55]}  b5 {[%clk 0:03:00]} 9. Bb3 {[%clk 0:02:54]}  O-O {[%clk 0:03:01]} 10. Nc3 {[%clk 0:02:53]}  d6 {[%clk 0:03:01]} 11. Bg5 {[%clk 0:02:51]}  h6 {[%clk 0:02:52]} 12. Be3 {[%clk 0:02:51]}  Bg4 {[%clk 0:02:51]} 13. Qd2 {[%clk 0:02:46]}  Bxf3 {[%clk 0:02:50]} 14. gxf3 {[%clk 0:02:47]}  Kh7 {[%clk 0:02:49]} 15. f4 {[%clk 0:02:42]}  Na5 {[%clk 0:02:46]} 16. Bc2 {[%clk 0:02:40]}  Nc4 {[%clk 0:02:45]} 17. Qc1 {[%clk 0:02:40]}  d5 {[%clk 0:02:34]} 18. e5 {[%clk 0:02:36]}  Qd7 {[%clk 0:02:23]} 19. Kh1 {[%clk 0:02:23]}  Nf5 {[%clk 0:02:23]} 20. b3 {[%clk 0:02:18]}  Na5 {[%clk 0:02:21]} 21. Qb1 {[%clk 0:01:58]}  c6 {[%clk 0:02:15]} 22. Bxf5 {[%clk 0:01:56]}  Qxf5 {[%clk 0:02:16]} 23. Qxf5 {[%clk 0:01:56]}  gxf5 {[%clk 0:02:17]} 24. Rac1 {[%clk 0:01:54]}  Nb7 {[%clk 0:02:13]} 25. Ne2 {[%clk 0:01:45]}  Rac8 {[%clk 0:02:13]} 26. Ng3 {[%clk 0:01:45]}  Kg6 {[%clk 0:02:14]} 27. Rg1 {[%clk 0:01:45]}  Bh8 {[%clk 0:02:01]} 28. h4 {[%clk 0:01:36]}  h5 {[%clk 0:01:59]} 29. Ne4+ {[%clk 0:01:06]}  Kh6 {[%clk 0:01:57]} 30. Ng3 {[%clk 0:00:59]}  Kg6 {[%clk 0:01:57]} 31. Ne2+ {[%clk 0:00:59]}  Kh6 {[%clk 0:01:47]} 32. Rg5 {[%clk 0:00:59]}  f6 {[%clk 0:01:47]} 33. Rxf5 {[%clk 0:00:56]}  Kg6 {[%clk 0:01:42]} 34. Ng3 {[%clk 0:00:55]}  Bg7 {[%clk 0:00:19]} 35. Rxh5 {[%clk 0:00:48]}  Nd8 {[%clk 0:00:07]} 36. f5+ {[%clk 0:00:43]}  Kf7 {[%clk 0:00:07]} 37. e6+ {[%clk 0:00:29]}  Ke8 {[%clk 0:00:07]} 38. Rh7 {[%clk 0:00:27]}  Rg8 {[%clk 0:00:07]} 39. Nh5 {[%clk 0:00:16]}  Bh8 {[%clk 0:00:06]} 40. Rg1 {[%clk 0:00:14]}  Kf8 {[%clk 0:00:05]} 41. e7+ {[%clk 0:00:14]}  Ke8 {[%clk 0:00:03]} 42. Rxg8+ {[%clk 0:00:14]} 1-0